[Event "Titled Tuesday Blitz December 06 Late 2022"]
[White "Christiansen, Johan-Sebastian"]
[Black "Therrien, Alex L"]
[WhiteFideId "1512668"]
[BlackFideId "412856"]
[WhiteElo "2501"]
[BlackElo "2214"]
[Result "1/2-1/2"]
[Round "01"]
[TimeControl "180+1"]
[Date "2022.12.07"]
[WhiteClock "0:00:34"]
[BlackClock "0:01:43"]

1. e4 {[%clk 0:02:59]}  c6 {[%clk 0:03:00]} 2. d4 {[%clk 0:02:58]}  d5 {[%clk 0:03:00]} 3. Nd2 {[%clk 0:02:59]}  g6 {[%clk 0:02:59]} 4. Ngf3 {[%clk 0:02:57]}  Bg7 {[%clk 0:02:59]} 5. h3 {[%clk 0:02:57]}  dxe4 {[%clk 0:02:58]} 6. Nxe4 {[%clk 0:02:57]}  Nd7 {[%clk 0:02:59]} 7. Bc4 {[%clk 0:02:57]}  Ngf6 {[%clk 0:02:58]} 8. Ng3 {[%clk 0:02:52]}  O-O {[%clk 0:02:50]} 9. O-O {[%clk 0:02:52]}  b5 {[%clk 0:02:49]} 10. Bb3 {[%clk 0:02:50]}  c5 {[%clk 0:02:49]} 11. dxc5 {[%clk 0:02:37]}  Nxc5 {[%clk 0:02:48]} 12. Be3 {[%clk 0:02:34]}  Nxb3 {[%clk 0:02:45]} 13. axb3 {[%clk 0:02:35]}  a6 {[%clk 0:02:40]} 14. Qe2 {[%clk 0:02:12]}  Bb7 {[%clk 0:02:40]} 15. Rfd1 {[%clk 0:02:12]}  Qc7 {[%clk 0:02:40]} 16. c3 {[%clk 0:02:12]}  Nd5 {[%clk 0:02:30]} 17. Bg5 {[%clk 0:02:05]}  h6 {[%clk 0:02:22]} 18. Bd2 {[%clk 0:02:01]}  e6 {[%clk 0:02:02]} 19. Ne4 {[%clk 0:01:30]}  Rad8 {[%clk 0:01:43]} 20. Nd4 {[%clk 0:00:34]} 1/2-1/2


[Site "https://www.chess.com"]

[Event "Titled Tuesday Blitz December 06 Late 2022"]
[White "Dias, Joao Batista"]
[Black "Erzhanov, Arman"]
[WhiteFideId "2108240"]
[BlackFideId "4138821"]
[WhiteElo "1898"]
[BlackElo "2176"]
[Result "1/2-1/2"]
[Round "01"]
[TimeControl "180+1"]
[Date "2022.12.07"]
[WhiteClock "0:00:53"]
[BlackClock "0:01:12"]

1. e4 {[%clk 0:02:56]}  d6 {[%clk 0:03:00]} 2. d4 {[%clk 0:02:55]}  Nf6 {[%clk 0:03:01]} 3. Bd3 {[%clk 0:02:53]}  e5 {[%clk 0:03:01]} 4. c3 {[%clk 0:02:52]}  d5 {[%clk 0:02:59]} 5. dxe5 {[%clk 0:02:48]}  Nxe4 {[%clk 0:02:59]} 6. Bxe4 {[%clk 0:02:47]}  dxe4 {[%clk 0:03:00]} 7. Qxd8+ {[%clk 0:02:47]}  Kxd8 {[%clk 0:03:01]} 8. Ne2 {[%clk 0:02:46]}  Nc6 {[%clk 0:02:55]} 9. Ng3 {[%clk 0:02:45]}  Nxe5 {[%clk 0:02:55]} 10. Nxe4 {[%clk 0:02:45]}  Nd3+ {[%clk 0:02:49]} 11. Kd2 {[%clk 0:02:40]}  Nxc1 {[%clk 0:02:48]} 12. Kxc1 {[%clk 0:02:40]}  f6 {[%clk 0:02:30]} 13. Rd1+ {[%clk 0:02:37]}  Ke8 {[%clk 0:02:29]} 14. Nbd2 {[%clk 0:02:33]}  Bf5 {[%clk 0:02:27]} 15. f3 {[%clk 0:02:32]}  Rd8 {[%clk 0:02:28]} 16. h4 {[%clk 0:02:30]}  h5 {[%clk 0:02:27]} 17. a4 {[%clk 0:02:22]}  Kf7 {[%clk 0:02:25]} 18. a5 {[%clk 0:02:20]}  a6 {[%clk 0:02:26]} 19. Ng3 {[%clk 0:02:14]}  Bg6 {[%clk 0:02:25]} 20. Nde4 {[%clk 0:02:12]}  Rxd1+ {[%clk 0:02:24]} 21. Kxd1 {[%clk 0:02:12]}  Be7 {[%clk 0:02:25]} 22. Ke2 {[%clk 0:02:11]}  Rd8 {[%clk 0:02:25]} 23. Rd1 {[%clk 0:02:09]}  Rxd1 {[%clk 0:02:25]} 24. Kxd1 {[%clk 0:02:10]}  Ke6 {[%clk 0:02:23]} 25. Ke2 {[%clk 0:02:09]}  Bf7 {[%clk 0:02:20]} 26. Nf1 {[%clk 0:02:07]}  g5 {[%clk 0:02:08]} 27. hxg5 {[%clk 0:02:06]}  fxg5 {[%clk 0:02:09]} 28. Ne3 {[%clk 0:01:59]}  Ke5 {[%clk 0:02:06]} 29. Kf2 {[%clk 0:01:49]}  h4 {[%clk 0:01:56]} 30. Ng4+ {[%clk 0:01:46]}  Kf5 {[%clk 0:01:56]} 31. Ne3+ {[%clk 0:01:44]}  Kf4 {[%clk 0:01:54]} 32. b4 {[%clk 0:01:35]}  c6 {[%clk 0:01:45]} 33. g3+ {[%clk 0:01:26]}  hxg3+ {[%clk 0:01:44]} 34. Nxg3 {[%clk 0:01:25]}  Bf6 {[%clk 0:01:39]} 35. Ne2+ {[%clk 0:01:24]}  Ke5 {[%clk 0:01:36]} 36. Ng4+ {[%clk 0:01:23]}  Ke6 {[%clk 0:01:35]} 37. Nxf6 {[%clk 0:01:23]}  Kxf6 {[%clk 0:01:36]} 38. Ke3 {[%clk 0:01:22]}  Ke5 {[%clk 0:01:35]} 39. Ng3 {[%clk 0:01:15]}  Bd5 {[%clk 0:01:35]} 40. Ne2 {[%clk 0:01:13]}  Bf7 {[%clk 0:01:28]} 41. Nd4 {[%clk 0:01:11]}  Bg6 {[%clk 0:01:25]} 42. Ne2 {[%clk 0:01:11]}  Bf5 {[%clk 0:01:24]} 43. f4+ {[%clk 0:01:11]}  gxf4+ {[%clk 0:01:22]} 44. Nxf4 {[%clk 0:01:12]}  Bd7 {[%clk 0:01:21]} 45. Nd3+ {[%clk 0:01:09]}  Kd5 {[%clk 0:01:21]} 46. Nc5 {[%clk 0:01:07]}  Bc8 {[%clk 0:01:21]} 47. Kd2 {[%clk 0:01:07]}  Kc4 {[%clk 0:01:20]} 48. Nd3 {[%clk 0:01:03]}  Kb5 {[%clk 0:01:16]} 49. Nc5 {[%clk 0:01:02]}  b6 {[%clk 0:01:17]} 50. axb6 {[%clk 0:01:02]}  Kxb6 {[%clk 0:01:18]} 51. Kd3 {[%clk 0:01:00]}  Kb5 {[%clk 0:01:18]} 52. Kd4 {[%clk 0:01:00]}  Bg4 {[%clk 0:01:16]} 53. Nb3 {[%clk 0:00:57]}  Be2 {[%clk 0:01:12]} 54. Na5 {[%clk 0:00:55]}  c5+ {[%clk 0:01:10]} 55. Ke3 {[%clk 0:00:53]}  cxb4 {[%clk 0:01:11]} 56. cxb4 {[%clk 0:00:52]}  Kxb4 {[%clk 0:01:10]} 57. Kxe2 {[%clk 0:00:52]}  Kxa5 {[%clk 0:01:10]} 58. Kd2 {[%clk 0:00:53]}  Kb4 {[%clk 0:01:10]} 59. Kc2 {[%clk 0:00:53]}  Ka3 {[%clk 0:01:11]} 60. Kb1 {[%clk 0:00:53]}  Kb3 {[%clk 0:01:11]} 61. Ka1 {[%clk 0:00:53]}  a5 {[%clk 0:01:12]} 1/2-1/2


[Site "https://www.chess.com"]

[Event "Titled Tuesday Blitz December 06 Late 2022"]
[White "Drozdowski, Kacper"]
[Black "Petrovic, Aleksa"]
[WhiteFideId "1136720"]
[BlackFideId "967629"]
[WhiteElo "2486"]
[BlackElo "2230"]
[Result "1-0"]
[Round "01"]
[TimeControl "180+1"]
[Date "2022.12.06"]
[WhiteClock "0:00:07"]
[BlackClock "0:00:02"]

1. e4 {[%clk 0:03:00]}  c6 {[%clk 0:02:58]} 2. d4 {[%clk 0:02:59]}  d5 {[%clk 0:02:59]} 3. Nc3 {[%clk 0:03:00]}  dxe4 {[%clk 0:02:59]} 4. Nxe4 {[%clk 0:03:01]}  Bf5 {[%clk 0:02:59]} 5. Ng3 {[%clk 0:03:01]}  Bg6 {[%clk 0:03:00]} 6. Nh3 {[%clk 0:03:01]}  Nf6 {[%clk 0:02:58]} 7. Nf4 {[%clk 0:03:01]}  e5 {[%clk 0:02:58]} 8. Nxg6 {[%clk 0:02:59]}  hxg6 {[%clk 0:02:58]} 9. dxe5 {[%clk 0:02:58]}  Qa5+ {[%clk 0:02:45]} 10. Bd2 {[%clk 0:02:56]}  Qxe5+ {[%clk 0:02:45]} 11. Qe2 {[%clk 0:02:56]}  Nbd7 {[%clk 0:02:41]} 12. O-O-O {[%clk 0:02:53]}  Qxe2 {[%clk 0:02:39]} 13. Bxe2 {[%clk 0:02:53]}  Bc5 {[%clk 0:02:34]} 14. f4 {[%clk 0:02:41]}  O-O-O {[%clk 0:02:28]} 15. Bf3 {[%clk 0:02:36]}  Nb6 {[%clk 0:02:26]} 16. b3 {[%clk 0:02:21]}  Nbd5 {[%clk 0:02:22]} 17. c4 {[%clk 0:02:15]}  Nb4 {[%clk 0:02:09]} 18. Bxb4 {[%clk 0:01:47]}  Bxb4 {[%clk 0:02:05]} 19. Ne2 {[%clk 0:01:47]}  Rxd1+ {[%clk 0:01:59]} 20. Kxd1 {[%clk 0:01:42]}  Rd8+ {[%clk 0:01:53]} 21. Kc1 {[%clk 0:01:43]}  Rd2 {[%clk 0:01:34]} 22. a3 {[%clk 0:01:28]}  Ra2 {[%clk 0:01:33]} 23. Kb1 {[%clk 0:01:28]}  Rxa3 {[%clk 0:01:32]} 24. Kb2 {[%clk 0:01:28]}  Nd7 {[%clk 0:01:15]} 25. Nd4 {[%clk 0:01:22]}  Nc5 {[%clk 0:00:59]} 26. Rd1 {[%clk 0:01:14]}  a5 {[%clk 0:00:57]} 27. Bg4+ {[%clk 0:00:37]}  Kc7 {[%clk 0:00:55]} 28. f5 {[%clk 0:00:36]}  gxf5 {[%clk 0:00:51]} 29. Bxf5 {[%clk 0:00:37]}  a4 {[%clk 0:00:45]} 30. Bc2 {[%clk 0:00:37]}  axb3 {[%clk 0:00:42]} 31. Bxb3 {[%clk 0:00:37]}  Nxb3 {[%clk 0:00:38]} 32. Nxb3 {[%clk 0:00:37]}  Ra8 {[%clk 0:00:38]} 33. Rf1 {[%clk 0:00:37]}  f6 {[%clk 0:00:34]} 34. Rf3 {[%clk 0:00:35]}  Rh8 {[%clk 0:00:33]} 35. h3 {[%clk 0:00:35]}  Re8 {[%clk 0:00:33]} 36. Nd4 {[%clk 0:00:33]}  Bc5 {[%clk 0:00:33]} 37. Nb3 {[%clk 0:00:28]}  Re2+ {[%clk 0:00:32]} 38. Kc3 {[%clk 0:00:28]}  Bd6 {[%clk 0:00:28]} 39. g4 {[%clk 0:00:28]}  b5 {[%clk 0:00:24]} 40. cxb5 {[%clk 0:00:28]}  cxb5 {[%clk 0:00:25]} 41. Kd3 {[%clk 0:00:28]}  Re5 {[%clk 0:00:18]} 42. Nd4 {[%clk 0:00:28]}  b4 {[%clk 0:00:16]} 43. Nf5 {[%clk 0:00:25]}  Bf8 {[%clk 0:00:16]} 44. Kc4 {[%clk 0:00:24]}  Kd7 {[%clk 0:00:14]} 45. Rd3+ {[%clk 0:00:22]}  Ke6 {[%clk 0:00:14]} 46. Nd4+ {[%clk 0:00:22]}  Kf7 {[%clk 0:00:14]} 47. Kb3 {[%clk 0:00:21]}  Rd5 {[%clk 0:00:13]} 48. Kc4 {[%clk 0:00:22]}  Rd7 {[%clk 0:00:11]} 49. Rf3 {[%clk 0:00:20]}  Be7 {[%clk 0:00:09]} 50. Nf5 {[%clk 0:00:20]}  Bf8 {[%clk 0:00:09]} 51. h4 {[%clk 0:00:20]}  Ra7 {[%clk 0:00:08]} 52. h5 {[%clk 0:00:19]}  Ra3 {[%clk 0:00:08]} 53. Rf1 {[%clk 0:00:19]}  b3 {[%clk 0:00:07]} 54. Rb1 {[%clk 0:00:17]}  Ra4+ {[%clk 0:00:07]} 55. Kxb3 {[%clk 0:00:16]}  Rxg4 {[%clk 0:00:08]} 56. Rh1 {[%clk 0:00:16]}  Rg5 {[%clk 0:00:07]} 57. Nd4 {[%clk 0:00:16]}  Rd5 {[%clk 0:00:07]} 58. Kc4 {[%clk 0:00:16]}  Rc5+ {[%clk 0:00:07]} 59. Kd3 {[%clk 0:00:17]}  Rg5 {[%clk 0:00:08]} 60. Ke4 {[%clk 0:00:17]}  Kg8 {[%clk 0:00:07]} 61. Nf3 {[%clk 0:00:16]}  Rg4+ {[%clk 0:00:07]} 62. Kf5 {[%clk 0:00:16]}  Ra4 {[%clk 0:00:07]} 63. Rd1 {[%clk 0:00:15]}  Kh7 {[%clk 0:00:06]} 64. Rd8 {[%clk 0:00:14]}  Ra5+ {[%clk 0:00:06]} 65. Kg4 {[%clk 0:00:14]}  Ba3 {[%clk 0:00:03]} 66. Rc8 {[%clk 0:00:09]}  Bc1 {[%clk 0:00:03]} 67. Rxc1 {[%clk 0:00:07]}  Ra4+ {[%clk 0:00:03]} 68. Kg3 {[%clk 0:00:07]}  Ra5 {[%clk 0:00:03]} 69. Kg4 {[%clk 0:00:07]}  g6 {[%clk 0:00:03]} 70. Rc7+ {[%clk 0:00:06]}  Kh6 {[%clk 0:00:02]} 71. hxg6 {[%clk 0:00:07]} 1-0


[Site "https://www.chess.com"]

[Event "Titled Tuesday Blitz December 06 Late 2022"]
[White "Fernandez Siles, Luis"]
[Black "Rastbod, Ali"]
[WhiteFideId "2209420"]
[BlackFideId "12567477"]
[WhiteElo "2186"]
[BlackElo "2223"]
[Result "0-1"]
[Round "01"]
[TimeControl "180+1"]
[Date "2022.12.07"]
[WhiteClock "0:00:06"]
[BlackClock "0:00:09"]

1. d4 {[%clk 0:02:59]}  d5 {[%clk 0:02:58]} 2. c4 {[%clk 0:02:58]}  e6 {[%clk 0:02:56]} 3. Nc3 {[%clk 0:02:58]}  Be7 {[%clk 0:02:56]} 4. Nf3 {[%clk 0:02:56]}  Nf6 {[%clk 0:02:55]} 5. e3 {[%clk 0:02:53]}  O-O {[%clk 0:02:55]} 6. Bd3 {[%clk 0:02:53]}  dxc4 {[%clk 0:02:48]} 7. Bxc4 {[%clk 0:02:52]}  a6 {[%clk 0:02:49]} 8. a4 {[%clk 0:02:51]}  c5 {[%clk 0:02:45]} 9. O-O {[%clk 0:02:49]}  cxd4 {[%clk 0:02:31]} 10. exd4 {[%clk 0:02:50]}  Nc6 {[%clk 0:02:18]} 11. Re1 {[%clk 0:02:43]}  Nb4 {[%clk 0:02:16]} 12. Ne5 {[%clk 0:02:39]}  Nbd5 {[%clk 0:02:10]} 13. Qd3 {[%clk 0:02:09]}  Bd7 {[%clk 0:02:04]} 14. Bxd5 {[%clk 0:02:00]}  Nxd5 {[%clk 0:01:59]} 15. Nxd5 {[%clk 0:01:59]}  exd5 {[%clk 0:02:00]} 16. Bf4 {[%clk 0:01:49]}  Be6 {[%clk 0:01:52]} 17. Qb3 {[%clk 0:01:33]}  Qa5 {[%clk 0:01:40]} 18. Qxb7 {[%clk 0:01:08]}  Qb4 {[%clk 0:00:53]} 19. Qxb4 {[%clk 0:00:56]}  Bxb4 {[%clk 0:00:54]} 20. Rec1 {[%clk 0:00:56]}  Rfc8 {[%clk 0:00:41]} 21. Nc6 {[%clk 0:00:51]}  Bf8 {[%clk 0:00:38]} 22. b4 {[%clk 0:00:35]}  Bd7 {[%clk 0:00:36]} 23. Ne5 {[%clk 0:00:27]}  Rxc1+ {[%clk 0:00:32]} 24. Bxc1 {[%clk 0:00:27]}  Be8 {[%clk 0:00:32]} 25. Bd2 {[%clk 0:00:24]}  Rc8 {[%clk 0:00:26]} 26. Kf1 {[%clk 0:00:21]}  Rc2 {[%clk 0:00:22]} 27. Ke2 {[%clk 0:00:19]}  Bxb4 {[%clk 0:00:21]} 28. Nf3 {[%clk 0:00:16]}  f6 {[%clk 0:00:17]} 29. Kd3 {[%clk 0:00:14]}  Bg6+ {[%clk 0:00:17]} 30. Ke3 {[%clk 0:00:11]}  Bd6 {[%clk 0:00:14]} 31. Rc1 {[%clk 0:00:09]}  Ra2 {[%clk 0:00:14]} 32. Rc8+ {[%clk 0:00:08]}  Kf7 {[%clk 0:00:14]} 33. Rc6 {[%clk 0:00:09]}  Ke7 {[%clk 0:00:09]} 34. Rxa6 {[%clk 0:00:09]}  Be8 {[%clk 0:00:10]} 35. Ra7+ {[%clk 0:00:09]}  Kf8 {[%clk 0:00:10]} 36. Ra6 {[%clk 0:00:08]}  Be7 {[%clk 0:00:09]} 37. a5 {[%clk 0:00:08]}  Ra3+ {[%clk 0:00:09]} 38. Kf4 {[%clk 0:00:06]}  g5+ {[%clk 0:00:09]} 39. Kg3 {[%clk 0:00:06]}  h5 {[%clk 0:00:09]} 40. h4 {[%clk 0:00:06]}  g4 {[%clk 0:00:09]} 0-1


[Site "https://www.chess.com"]

[Event "Titled Tuesday Blitz December 06 Late 2022"]
[White "Forgacs, Attila Jr."]
[Black "Nazari, Arad"]
[WhiteFideId "773654"]
[BlackFideId "12577324"]
[WhiteElo "2168"]
[BlackElo "2264"]
[Result "0-1"]
[Round "01"]
[TimeControl "180+1"]
[Date "2022.12.07"]
[WhiteClock "0:00:33"]
[BlackClock "0:00:17"]

1. e4 {[%clk 0:03:00]}  c5 {[%clk 0:01:58]} 2. d3 {[%clk 0:02:58]}  g6 {[%clk 0:01:41]} 3. g3 {[%clk 0:02:58]}  Bg7 {[%clk 0:01:41]} 4. Bg2 {[%clk 0:02:59]}  d6 {[%clk 0:01:41]} 5. f4 {[%clk 0:02:58]}  Nc6 {[%clk 0:01:42]} 6. Nf3 {[%clk 0:02:59]}  e6 {[%clk 0:01:43]} 7. O-O {[%clk 0:02:59]}  Nge7 {[%clk 0:01:43]} 8. Nc3 {[%clk 0:02:58]}  O-O {[%clk 0:01:44]} 9. Be3 {[%clk 0:02:57]}  Rb8 {[%clk 0:01:44]} 10. a4 {[%clk 0:02:56]}  a6 {[%clk 0:01:44]} 11. Qd2 {[%clk 0:02:55]}  b5 {[%clk 0:01:44]} 12. axb5 {[%clk 0:02:55]}  axb5 {[%clk 0:01:45]} 13. Ne2 {[%clk 0:02:55]}  Bb7 {[%clk 0:01:36]} 14. Rab1 {[%clk 0:02:53]}  Qc7 {[%clk 0:01:29]} 15. g4 {[%clk 0:02:52]}  f5 {[%clk 0:01:28]} 16. gxf5 {[%clk 0:02:49]}  exf5 {[%clk 0:01:25]} 17. Ng3 {[%clk 0:02:38]}  Rbe8 {[%clk 0:01:04]} 18. Ng5 {[%clk 0:02:32]}  Bc8 {[%clk 0:01:01]} 19. exf5 {[%clk 0:02:21]}  Nxf5 {[%clk 0:00:59]} 20. Bd5+ {[%clk 0:02:18]}  Kh8 {[%clk 0:00:59]} 21. Nxf5 {[%clk 0:02:18]}  Bxf5 {[%clk 0:00:52]} 22. Rbe1 {[%clk 0:01:55]}  Nb4 {[%clk 0:00:29]} 23. Be4 {[%clk 0:01:51]}  Bxe4 {[%clk 0:00:25]} 24. dxe4 {[%clk 0:01:51]}  Nc6 {[%clk 0:00:23]} 25. c3 {[%clk 0:01:48]}  h6 {[%clk 0:00:21]} 26. Nf3 {[%clk 0:01:40]}  Rxe4 {[%clk 0:00:22]} 27. Qd3 {[%clk 0:01:40]}  Rfe8 {[%clk 0:00:21]} 28. Bd2 {[%clk 0:01:38]}  Rxe1 {[%clk 0:00:19]} 29. Rxe1 {[%clk 0:01:39]}  Rxe1+ {[%clk 0:00:19]} 30. Bxe1 {[%clk 0:01:40]}  Ne7 {[%clk 0:00:13]} 31. Bh4 {[%clk 0:01:37]}  Nf5 {[%clk 0:00:12]} 32. Bf2 {[%clk 0:01:34]}  Qc6 {[%clk 0:00:12]} 33. Nd2 {[%clk 0:01:25]}  c4 {[%clk 0:00:12]} 34. Qe4 {[%clk 0:01:21]}  d5 {[%clk 0:00:12]} 35. Qf3 {[%clk 0:01:16]}  Kh7 {[%clk 0:00:12]} 36. Nf1 {[%clk 0:01:08]}  Qd6 {[%clk 0:00:11]} 37. Ng3 {[%clk 0:01:07]}  Nxg3 {[%clk 0:00:09]} 38. hxg3 {[%clk 0:01:08]}  Qe6 {[%clk 0:00:10]} 39. Kf1 {[%clk 0:01:07]}  g5 {[%clk 0:00:08]} 40. fxg5 {[%clk 0:01:04]}  hxg5 {[%clk 0:00:08]} 41. Qh5+ {[%clk 0:01:05]}  Bh6 {[%clk 0:00:09]} 42. Bd4 {[%clk 0:01:03]}  Qg6 {[%clk 0:00:06]} 43. Qe2 {[%clk 0:01:00]}  Qe4 {[%clk 0:00:06]} 44. Qxe4+ {[%clk 0:00:56]}  dxe4 {[%clk 0:00:07]} 45. g4 {[%clk 0:00:56]}  Bg7 {[%clk 0:00:04]} 46. Bc5 {[%clk 0:00:50]}  Be5 {[%clk 0:00:03]} 47. Ke2 {[%clk 0:00:49]}  Bf4 {[%clk 0:00:04]} 48. Be7 {[%clk 0:00:44]}  Kg6 {[%clk 0:00:04]} 49. Ba3 {[%clk 0:00:44]}  Kf7 {[%clk 0:00:05]} 50. Kf2 {[%clk 0:00:44]}  Ke6 {[%clk 0:00:06]} 51. Ke2 {[%clk 0:00:44]}  Kd5 {[%clk 0:00:06]} 52. Be7 {[%clk 0:00:44]}  Bc1 {[%clk 0:00:06]} 53. Ba3 {[%clk 0:00:44]}  Ke5 {[%clk 0:00:06]} 54. Kd1 {[%clk 0:00:40]}  Be3 {[%clk 0:00:06]} 55. Ke2 {[%clk 0:00:39]}  Bf4 {[%clk 0:00:06]} 56. Ke1 {[%clk 0:00:25]}  Bc1 {[%clk 0:00:06]} 57. Kd1 {[%clk 0:00:25]}  Be3 {[%clk 0:00:03]} 58. Ke2 {[%clk 0:00:26]}  Bb6 {[%clk 0:00:03]} 59. Be7 {[%clk 0:00:24]}  Kf4 {[%clk 0:00:04]} 60. Bf6 {[%clk 0:00:17]}  Kxg4 {[%clk 0:00:04]} 61. Bg7 {[%clk 0:00:18]}  Kf5 {[%clk 0:00:04]} 62. Bd4 {[%clk 0:00:19]}  Bxd4 {[%clk 0:00:03]} 63. cxd4 {[%clk 0:00:20]}  Ke6 {[%clk 0:00:04]} 64. Ke3 {[%clk 0:00:20]}  Kd5 {[%clk 0:00:04]} 65. Kf2 {[%clk 0:00:20]}  Kxd4 {[%clk 0:00:05]} 66. Ke2 {[%clk 0:00:21]}  g4 {[%clk 0:00:05]} 67. Kd2 {[%clk 0:00:22]}  g3 {[%clk 0:00:06]} 68. Ke2 {[%clk 0:00:23]}  g2 {[%clk 0:00:06]} 69. Kf2 {[%clk 0:00:24]}  Kd3 {[%clk 0:00:07]} 70. Kg1 {[%clk 0:00:25]}  Kc2 {[%clk 0:00:08]} 71. Kxg2 {[%clk 0:00:25]}  Kxb2 {[%clk 0:00:08]} 72. Kf2 {[%clk 0:00:26]}  c3 {[%clk 0:00:09]} 73. Ke3 {[%clk 0:00:27]}  b4 {[%clk 0:00:10]} 74. Kd4 {[%clk 0:00:27]}  b3 {[%clk 0:00:11]} 75. Kc4 {[%clk 0:00:28]}  c2 {[%clk 0:00:12]} 76. Kd4 {[%clk 0:00:29]}  c1=Q {[%clk 0:00:13]} 77. Ke5 {[%clk 0:00:29]}  Qc2 {[%clk 0:00:14]} 78. Kf4 {[%clk 0:00:30]}  Qd3 {[%clk 0:00:14]} 79. Ke5 {[%clk 0:00:31]}  e3 {[%clk 0:00:15]} 80. Kf4 {[%clk 0:00:31]}  e2 {[%clk 0:00:15]} 81. Ke5 {[%clk 0:00:32]}  e1=Q+ {[%clk 0:00:16]} 82. Kf4 {[%clk 0:00:33]}  Qde4+ {[%clk 0:00:16]} 83. Kg5 {[%clk 0:00:33]}  Q1h4# {[%clk 0:00:17]} 0-1


[Site "https://www.chess.com"]

[Event "Titled Tuesday Blitz December 06 Late 2022"]
[White "Gasparyan, David"]
[Black "Matinian, Nikita"]
[WhiteFideId "13311980"]
[BlackFideId "24129100"]
[WhiteElo "2375"]
[BlackElo "2422"]
[Result "1-0"]
[Round "01"]
[TimeControl "180+1"]
[Date "2022.12.07"]
[WhiteClock "0:00:48"]
[BlackClock "0:00:28"]

1. e4 {[%clk 0:02:50]}  c5 {[%clk 0:02:59]} 2. Ne2 {[%clk 0:02:48]}  g6 {[%clk 0:02:55]} 3. Nbc3 {[%clk 0:02:47]}  Bg7 {[%clk 0:02:55]} 4. h4 {[%clk 0:02:47]}  h5 {[%clk 0:02:53]} 5. d3 {[%clk 0:02:44]}  Nc6 {[%clk 0:02:53]} 6. Be3 {[%clk 0:02:43]}  Nd4 {[%clk 0:02:52]} 7. Nf4 {[%clk 0:02:36]}  d6 {[%clk 0:02:40]} 8. Be2 {[%clk 0:02:35]}  Nf6 {[%clk 0:02:37]} 9. Ncd5 {[%clk 0:02:28]}  Ng4 {[%clk 0:02:36]} 10. Bxg4 {[%clk 0:02:19]}  Bxg4 {[%clk 0:02:37]} 11. f3 {[%clk 0:02:20]}  Bd7 {[%clk 0:02:37]} 12. c3 {[%clk 0:02:20]}  Nc6 {[%clk 0:02:33]} 13. Bf2 {[%clk 0:02:18]}  e6 {[%clk 0:02:28]} 14. Ne3 {[%clk 0:02:18]}  b5 {[%clk 0:02:27]} 15. Qc2 {[%clk 0:02:12]}  Qc7 {[%clk 0:02:20]} 16. O-O {[%clk 0:02:11]}  Rc8 {[%clk 0:02:14]} 17. a4 {[%clk 0:02:08]}  b4 {[%clk 0:02:14]} 18. Nc4 {[%clk 0:02:05]}  O-O {[%clk 0:02:08]} 19. Bg3 {[%clk 0:02:02]}  Ne5 {[%clk 0:02:05]} 20. Ne2 {[%clk 0:01:59]}  Nxc4 {[%clk 0:01:56]} 21. dxc4 {[%clk 0:02:00]}  e5 {[%clk 0:01:57]} 22. Rad1 {[%clk 0:01:56]}  Be6 {[%clk 0:01:57]} 23. b3 {[%clk 0:01:56]}  f5 {[%clk 0:01:57]} 24. Qd3 {[%clk 0:01:52]}  f4 {[%clk 0:01:56]} 25. Bf2 {[%clk 0:01:52]}  Rfd8 {[%clk 0:01:41]} 26. cxb4 {[%clk 0:01:43]}  cxb4 {[%clk 0:01:42]} 27. a5 {[%clk 0:01:43]}  Bf6 {[%clk 0:01:38]} 28. Ra1 {[%clk 0:01:41]}  Kh7 {[%clk 0:01:34]} 29. Ra4 {[%clk 0:01:40]}  Rb8 {[%clk 0:01:32]} 30. Rd1 {[%clk 0:01:38]}  g5 {[%clk 0:01:32]} 31. hxg5 {[%clk 0:01:37]}  Bxg5 {[%clk 0:01:32]} 32. a6 {[%clk 0:01:33]}  Qg7 {[%clk 0:01:30]} 33. Qd2 {[%clk 0:01:32]}  h4 {[%clk 0:01:19]} 34. Rxb4 {[%clk 0:01:26]}  Rxb4 {[%clk 0:01:19]} 35. Qxb4 {[%clk 0:01:27]}  h3 {[%clk 0:01:19]} 36. g4 {[%clk 0:01:24]}  fxg3 {[%clk 0:01:18]} 37. Nxg3 {[%clk 0:01:21]}  Be3 {[%clk 0:01:15]} 38. Kf1 {[%clk 0:01:10]}  Rg8 {[%clk 0:01:08]} 39. Qb7 {[%clk 0:01:03]}  Bf7 {[%clk 0:01:01]} 40. Bxe3 {[%clk 0:00:57]}  h2 {[%clk 0:00:58]} 41. Ke2 {[%clk 0:00:56]}  Qxg3 {[%clk 0:00:47]} 42. Qxf7+ {[%clk 0:00:55]}  Rg7 {[%clk 0:00:48]} 43. Qh5+ {[%clk 0:00:55]}  Kg8 {[%clk 0:00:48]} 44. Rxd6 {[%clk 0:00:48]}  Qg2+ {[%clk 0:00:47]} 45. Bf2 {[%clk 0:00:48]}  Rg6 {[%clk 0:00:28]} 1-0


[Site "https://www.chess.com"]

[Event "Titled Tuesday Blitz December 06 Late 2022"]
[White "Gatterer, Florian"]
[Black "Rosenthal, Nicholas"]
[WhiteFideId "811688"]
[BlackFideId "2045150"]
[WhiteElo "2218"]
[BlackElo "2182"]
[Result "1/2-1/2"]
[Round "01"]
[TimeControl "180+1"]
[Date "2022.12.07"]
[WhiteClock "0:01:06"]
[BlackClock "0:02:18"]

1. b3 {[%clk 0:03:00]}  e5 {[%clk 0:02:57]} 2. Bb2 {[%clk 0:02:58]}  Nc6 {[%clk 0:02:57]} 3. e3 {[%clk 0:02:59]}  Nf6 {[%clk 0:02:57]} 4. Nf3 {[%clk 0:02:50]}  d6 {[%clk 0:02:57]} 5. d4 {[%clk 0:02:47]}  exd4 {[%clk 0:02:56]} 6. Nxd4 {[%clk 0:02:47]}  Nxd4 {[%clk 0:02:56]} 7. Qxd4 {[%clk 0:02:43]}  Be7 {[%clk 0:02:56]} 8. Nc3 {[%clk 0:02:42]}  O-O {[%clk 0:02:54]} 9. O-O-O {[%clk 0:02:42]}  Re8 {[%clk 0:02:52]} 10. Nd5 {[%clk 0:02:33]}  Be6 {[%clk 0:02:51]} 11. Nxe7+ {[%clk 0:02:25]}  Qxe7 {[%clk 0:02:52]} 12. h3 {[%clk 0:02:18]}  d5 {[%clk 0:02:37]} 13. Bd3 {[%clk 0:02:04]}  c5 {[%clk 0:02:36]} 14. Qh4 {[%clk 0:02:04]}  c4 {[%clk 0:02:30]} 15. Bxf6 {[%clk 0:02:00]}  Qxf6 {[%clk 0:02:31]} 16. Qxf6 {[%clk 0:01:39]}  gxf6 {[%clk 0:02:32]} 17. Be2 {[%clk 0:01:38]}  b5 {[%clk 0:02:32]} 18. Bf3 {[%clk 0:01:37]}  Red8 {[%clk 0:02:30]} 19. Rd4 {[%clk 0:01:37]}  a5 {[%clk 0:02:19]} 20. Rhd1 {[%clk 0:01:37]}  cxb3 {[%clk 0:02:19]} 21. cxb3 {[%clk 0:01:33]}  a4 {[%clk 0:02:18]} 22. Kb2 {[%clk 0:01:06]} 1/2-1/2


[Site "https://www.chess.com"]